Cogmind - Beta 16 @@@ ROGUE MODE // 2025.12.07 @ 09:32:38 Player: FR-13D Result: Destroyed by SI-4P5(R) with Subdweller Laser Performance ------------- Evolutions (0) 0 Regions Visited (2) 400 Robots Destroyed (25) 125 Value Destroyed (522) 522 Prototype IDs (0) 0 Alien Tech Used (0) 0 Bonus (0) 0 TOTAL SCORE: 1047 Bonus ------- None Cogmind --------- Core Integrity 0/250 Matter 107/300 Energy 209/250 System Corruption 0% Temperature Cool (6) Movement Treading (560) Ox4 Location -10/Subcaves Parts ------- > --- POWER (1) -------- Ion Engine > --- PROPULSION (2) --- Spiked Treads Wheel > --- UTILITY (2) ------ Huge Storage Unit Core Shielding > --- WEAPON (2) ------- Subdweller Machine Gun Mining Laser > --- INVENTORY (25) --- Wheel Heat Sink Heat Sink Improved Heat Sink Small Storage Unit Seismic Detector Core Shielding Light Cannon Peak State ------------ > --- POWER ------------ Ion Engine > --- PROPULSION ------- Spiked Treads Wheel > --- UTILITY ---------- Huge Storage Unit Seismic Detector > --- WEAPON ----------- EM Pulse Gun Subdweller Machine Gun > --- INVENTORY -------- Wheel Wheel Heat Sink Heat Sink Improved Heat Sink Small Storage Unit Core Shielding Core Shielding Light Cannon Mining Laser [Rating: 10] Favorites ----------- Power Ion Engine Engine Ion Engine Propulsion Wheel Treads Spiked Treads Wheel Wheel Utility Seismic Detector Device Seismic Detector Storage Huge Storage Unit Protection Core Shielding Weapon Assault Rifle Energy Gun Small Laser Energy Cannon Beam Cannon Ballistic Gun Assault Rifle Ballistic Cannon Light Cannon Special Weapon Mining Laser Build | -11 -10 -10 ------- Run | Yrd Mat Sub Slots Evolved . | . . . Power . | . . . Propulsion . | . . . Utility . | . . . Weapon . | . . . Parts Attached 23 | 8 6 9 Power 3 | 1 1 1 Engine 3 | 1 1 1 Core . | . . . Reactor . | . . . Propulsion 8 | 3 3 2 Treads 3 | . 2 1 Leg . | . . . Wheel 5 | 3 1 1 Hover . | . . . Flight . | . . . Utility 5 | 2 2 1 Device 1 | 1 . . Storage 3 | 1 2 . Processor . | . . . Hackware . | . . . Protection 1 | . . 1 Artifact . | . . . Weapon 7 | 2 . 5 Energy Gun 2 | 1 . 1 Energy Cannon 1 | . . 1 Ballistic Gun 2 | 1 . 1 Ballistic Cannon 1 | . . 1 Launcher . | . . . Special Weapon 1 | . . 1 Impact Weapon . | . . . Slashing Weapon . | . . . Piercing Weapon . | . . . Special Melee Weapon . | . . . Unidentified Prototypes . | . . . Parts Lost 10 | . . 10 Power 1 | . . 1 Propulsion 5 | . . 5 Utility . | . . . Weapon 4 | . . 4 Highest Loss Streak 6 | . . 6 To Critical Strikes . | . . . Average Backups 10 | 3 11 10 Power . | . 1 . Propulsion 3 | 1 4 2 Utility 4 | . 3 6 Weapon 2 | . 3 2 Tool/Special . | . . . Unused Backups 6 | . 1 5 Power . | . . . Propulsion 1 | . . 1 Utility 4 | . . 4 Weapon 1 | . 1 . Tool/Special . | . . . Average Slot Usage (%) 97 | . 100 95 Engine 13 | . 14 12 Treads 10 | . 9 11 Wheel 16 | . 18 13 Device 11 | . 14 9 Storage 14 | . 14 14 Protection 2 | . . 4 Energy Gun 10 | . 14 7 Energy Cannon 2 | . . 5 Ballistic Gun 10 | . 14 6 Ballistic Cannon 3 | . . 7 Peak Build Rating 10 | 7 8 10 Average Rating 8 | 5 7 8 On Entrance 5 | . 7 8 Avg Prop Armor Cover (%) 12 | . 12 12 Naked Turns . | . . . Heaviest Build 92 | 14 89 92 Greatest Support 26 | 26 20 20 Greatest Overweight (x) 9 | 2 8 9 Average Overweight (x) 5 | . 3 8 Largest Inventory Capacity 25 | 8 25 25 Average Capacity 21 | 7 19 25 Most Carried 16 | 8 16 16 Average Carried 10 | 3 11 10 Final Capacity 25 | 8 25 25 Final Carried 16 | 7 16 8 Class Distribution -------------------- 100% | Mutant Dominant Class ---------------- Mutant | -10/Materials Mutant | -10/Subcaves Resources | -11 -10 -10 ----------- Run | Yrd Mat Sub Matter Collected 653 | 319 197 137 Remotely . | . . . Salvage Created 789 | 178 420 191 Parts 63 | 16 28 19 Haulers Intercepted 1 | . 1 . Recyclers Shooed . | . . . Parts Field Recycled . | . . . Retrieved Matter . | . . . Parts Self-Destructed 9 | . . 9 Prevented . | . . . Parts Restored . | . . . Kills | -11 -10 -10 ------- Run | Yrd Mat Sub Combat Hostiles Destroyed 18 | . 10 8 Guns 10 | . 10 . Cannons 8 | . . 8 Classes Destroyed 7 | 2 4 1 Builder 1 | . 1 . Tunneler 4 | 4 . . Hauler 1 | . 1 . Recycler 1 | 1 . . Swarmer 7 | . 3 4 Grunt 7 | . 7 . Subdweller 4 | . . 4 Best Kill Streak 3 | 2 3 2 Combat Bots Only 3 | . 3 2 Max Kills in Single Turn 1 | 1 1 1 Gunslinging . | . . . Exploded . | . . . Melee . | . . . Uniques/NPCs Destroyed . | . . . Combat | -11 -10 -10 -------- Run | Yrd Mat Sub Hostile Shots Fired 141 | . 62 79 Missed 36 | . 18 18 Hits 105 | . 44 61 Projectile 105 | . 44 61 Critical Strikes 2 | . . 2 Damage Taken 1600 | . 457 1143 Core 255 | . 82 173 Absorbed by Shields . | . . . Redirected to Shielding 31 | . . 31 Core Remaining (%) 100 | 100 . . Volleys Fired 91 | 13 43 35 Largest 2 | 2 2 2 Hottest 130 | 60 60 130 Shots Fired 175 | 26 84 65 Gun 129 | 26 84 19 Cannon 44 | . . 44 Launcher . | . . . Special 2 | . . 2 Kinetic 86 | 13 43 30 Thermal 82 | 13 41 28 Explosive . | . . . Electromagnetic 7 | . . 7 Robot Hit Streak 14 | 9 5 14 Robot Miss Streak 5 | 5 4 2 Penetration Max . | . . . Secondary Targets 2 | . 2 . Max Gunslinging Chain 1 | . 1 . Shots Hit Robots 111 | 17 45 49 Core Hits 41 | 6 21 14 Critical Kills . | . . . Critical Parts Destroyed . | . . . Critical Strikes 2 | . . 2 Blast 2 | . . 2 Melee Attacks . | . . . Impact . | . . . Slashing . | . . . Piercing . | . . . Sneak Attacks . | . . . Combat Hostiles . | . . . Follow-up Attacks . | . . . Damage Inflicted 1484 | 197 549 738 Guns 959 | 197 549 213 Cannons 525 | . . 525 Explosions . | . . . Melee . | . . . Ramming . | . . . Kinetic 825 | 98 345 382 Thermal 603 | 99 204 300 Explosive . | . . . Electromagnetic 56 | . . 56 Impact . | . . . Slashing . | . . . Piercing . | . . . Highest Corruption . | . . . Average Corruption . | . . . Corruption Purged . | . . . Corruption Blocked . | . . . Overload Shots . | . . . Overflow Damage . | . . . Projectiles . | . . . Explosions . | . . . Melee . | . . . Knockbacks 4 | . . 4 Impact . | . . . Kinetic 4 | . . 4 Secondary . | . . . Self-Inflicted Damage . | . . . Shots . | . . . Rammed . | . . . Targets Rammed . | . . . Kicked . | . . . Crushed . | . . . Highest Temperature 99 | . 99 . Average Temperature 44 | . 44 . Received Heat Transfer 348 | . 168 180 Siege Activations . | . . . Martial Activations . | . . . Shielding Activations . | . . . Robots Disrupted . | . . . Combat Hostiles . | . . . Robots Corrupted . | . . . Combat Hostiles . | . . . Parts Fried . | . . . Impact Corruptions . | . . . Robots Melted . | . . . Combat Hostiles . | . . . Parts Melted 3 | 1 . 2 Heat Transferred 1343 | 225 475 643 Parts Sabotaged . | . . . Parts Stolen . | . . . Parts Stripped . | . . . Power Chain Reactions . | . . . Alert | -11 -10 -10 ------- Run | Yrd Mat Sub Maximum Alert Level . | . . . Low Security (%) 100 | 100 100 . Level 1 . | . . . Level 2 . | . . . Level 3 . | . . . Level 4 . | . . . Level 5 . | . . . High Security . | . . . Max Security . | . . . Peak Influence 74 | 10 74 . Initial . | . . . Average 23 | 1 26 . Influence Increases 447 | 25 267 155 Destroy 0b10 Robot/C 280 | . 200 80 Destroy 0b10 Robot/NC 35 | 25 10 . Destroy Leader 52 | . 52 . Successful Hack 5 | . 5 . Lose Combat Pursuer 75 | . . 75 Influence Decreases 447 | 25 250 172 Entered New Map 9 | . . 9 Time Decay 410 | 25 250 135 Lost Part 28 | . . 28 Squads Dispatched 3 | . 3 . Investigation . | . . . Extermination . | . . . Reinforcement 3 | . 3 . Assault . | . . . Garrison . | . . . Intercept . | . . . Searches Triggered . | . . . Construction Impeded . | . . . Haulers Reinforced . | . . . Active Scanning Responses . | . . . Cargo Convoy Interrupts . | . . . Stealth | -11 -10 -10 --------- Run | Yrd Mat Sub Distress Signals 2 | . 2 . Communications Jammed . | . . . Distress Signals . | . . . Times Spotted 37 | . 25 12 Peak Tracking Total 6 | . 6 4 Tactical Retreats 2 | . . 2 Traps | -11 -10 -10 ------- Run | Yrd Mat Sub Traps Triggered . | . . . Indirectly . | . . . Trap Hack Attempts . | . . . Triggered . | . . . Disarmed . | . . . Reprogrammed . | . . . Reused . | . . . Traps Extracted . | . . . Installed . | . . . Triggered . | . . . Machines | -11 -10 -10 ---------- Run | Yrd Mat Sub Machines Disabled . | . . . Max in Single Turn . | . . . Machines Repaired . | . . . Machines Dismantled . | . . . Machines Sabotaged . | . . . Overloaded Fab Kills . | . . . Hacking | -11 -10 -10 --------- Run | Yrd Mat Sub Machines Accessed 1 | . 1 . Terminals 1 | . 1 . Fabricators . | . . . Repair Stations . | . . . Recycling Units . | . . . Scanalyzers . | . . . Garrison Access . | . . . Total Hacks 2 | . 2 . Successful 1 | . 1 . Failed 1 | . 1 . Catastrophic . | . . . Database Lockouts . | . . . Manual 1 | . 1 . Terminals 2 | . 2 . Fabricators . | . . . Repair Stations . | . . . Recycling Units . | . . . Scanalyzers . | . . . Garrison Access . | . . . Terminal Hacks . | . . . Fabricator Hacks . | . . . Repair Station Hacks . | . . . Recycling Unit Hacks . | . . . Scanalyzer . | . . . Garrison Access Hacks . | . . . Unauthorized Hacks 1 | . 1 . Terminals 1 | . 1 . Botnet 1 | . 1 . Fabricators . | . . . Repair Stations . | . . . Recycling Units . | . . . Scanalyzers . | . . . Garrison Access . | . . . Data Cores Recovered . | . . . Used . | . . . Hacking Detections 1 | . 1 . Full Trace Events . | . . . Feedback Events . | . . . Feedback Blocked . | . . . Robot Schematics Acquired . | . . . Robots Built . | . . . Authchips . | . . . Time . | . . . Total Robot Build Rating . | . . . Part Schematics Acquired . | . . . Parts Built . | . . . Authchips . | . . . Time . | . . . Total Part Build Rating . | . . . Part Studies Acquired . | . . . Parts Repaired . | . . . Time . | . . . Parts Recycled . | . . . Recycled Matter . | . . . Retrieved Matter . | . . . Retrieved Components . | . . . Parts Scanalyzed . | . . . Part Schematics Acquired . | . . . Parts Damaged . | . . . Bothacking | -11 -10 -10 ------------ Run | Yrd Mat Sub Used RIF Installer . | . . . Robots Hacked . | . . . Non-combat . | . . . Combat . | . . . Robot Hacks Applied . | . . . Relay Couplers Released . | . . . Fabnet Peak Effective % . | . . . Robots Rewired . | . . . Allies Hacked . | . . . Hacks Repelled . | . . . Allies | -11 -10 -10 -------- Run | Yrd Mat Sub Total Allies . | . . . Largest Group . | . . . Highest-Rated Group . | . . . Highest-Rated Ally . | . . . Total Orders . | . . . Ally Attacks . | . . . Total Damage . | . . . Kills . | . . . Allies Corrupted . | . . . Allies Melted . | . . . Intel | -11 -10 -10 ------- Run | Yrd Mat Sub Active Infowar (turns) 1777 | 83 974 720 Seismic 1777 | 83 974 720 Robot Analysis Total . | . . . Derelict Logs Recovered . | . . . Drone Launches . | . . . Drone Recoveries . | . . . Exploration | -11 -10 -10 ------------- Run | Yrd Mat Sub Turns Passed 2120 | 124 974 1022 Spaces Moved 907 | 79 431 397 Core 22 | 22 . . Treads . | . . . Legs . | . . . Wheels 885 | 57 431 397 Hover . | . . . Flight . | . . . Fastest Speed 50 | 50 80 140 Average Speed 162 | 82 133 210 Slowest Speed 215 | 150 200 215 Overloaded Moves . | . . . Propulsion Burnouts . | . . . Robots Hopped . | . . . Potential Cave-ins . | . . . Cave-ins Triggered . | . . . Exploration Rate (%) 34 | 6 71 26 Regions Visited 2 Branch Regions 1 Pre-discovered Areas . | . . . Known Exits Taken . | . . . Unknown Exits Taken 2 | 1 1 . Scrap Searched . | . . . Spaces Dug . | . . . Terrain Destroyed . | . . . Melee . | . . . Projectile . | . . . AOE . | . . . Terrain Rammed . | . . . Walls Destroyed . | . . . Machines Disabled . | . . . Actions | -11 -10 -10 --------- Run | Yrd Mat Sub Total 1360 | 107 742 511 Wait 302 | . 249 53 Move 905 | 78 430 397 Hop . | . . . Pick Up 16 | 7 8 1 Fast Attach 8 | 7 . 1 Attach 9 | . . 9 Detach . | . . . Swap 25 | 1 9 15 Drop 4 | 1 3 . Fire 91 | 13 43 35 Melee . | . . . Ram . | . . . Kick . | . . . Crush . | . . . Escape Stasis . | . . . Rewire . | . . . Trap . | . . . Miscellaneous . | . . . Route ------- -11/Scrapyard -10/Materials (discovered 5 exits: [*Mat x3] / [*Min] / [*Sub]) -10/Subcaves (discovered 1 exit: [*Mat]) History --------- Turn | Location | Event 27 | -11/Scrapyard | Discovered new exit (range 16) 125 | -11/Scrapyard | Entered Materials 309 | -10/Materials | Build established: Mutant 565 | -10/Materials | Discovered new exit (range 6) 636 | -10/Materials | Discovered new exit (range 15) 869 | -10/Materials | Discovered new exit (range 11) 931 | -10/Materials | Discovered new exit (range 16) 1030 | -10/Materials | Discovered new exit (range 8) 1099 | -10/Materials | Entered Subcaves 1100 | -10/Subcaves | Ambushed by Subdwellers from Twisted Machinery 1115 | -10/Subcaves | Core integrity fell below 50% 1169 | -10/Subcaves | Lost 6 parts (1p3n2w) 1716 | -10/Subcaves | Discovered new exit (range 5) 2110 | -10/Subcaves | Core integrity fell below 20% 2121 | -10/Subcaves | Destroyed by SI-4P5(R) with Subdweller Laser Last Messages --------------- 01421_ Lgt. Ion Engine fries itself beyond repair. 01421_ Flight Unit fries itself beyond repair. 01425_ S-10 Pest Flight Unit blasted off. 01425_ S-10 Pest knocked back. 01428_ S-10 Pest destroyed. 01441_ Lgt. Ion Engine fries itself beyond repair. 01443_ Flight Unit fries itself beyond repair. 01593_ Beam Cannon destroyed. 01606_ 52-M53(R) knocked back. 01610_ Wheel destroyed. 01612_ 52-M53(R) destroyed. 01624_ Subatomizers dissect the Sub. Monowheel. 01635_ Acquired Sub. Machine Gun. 01636_ Acquired 32 matter. 01638_ Acquired 9 matter. 01645_ Subatomizers dissect the Sub. Monowheel. 01716_ EXIT=FOUND 02089_ Wheel destroyed. 02119_ EM Pulse Gun destroyed. 02119_ CQ-BR2(R) misfires. Map ----- +----------------------------------------------------+ | ????????????????????????????????????????????????? | | ????????????????????????????????????????????????? | | ????????????????????????????????????????????????? | | ????????????????????????????????????????????????? | | ????????????????????????????????????????????????? | | #????# #????????????????????????????????????????? | | ???? ##???????????? ?????????????????????????? | | #### #??????????? #???? ????????????????????? | | ??????????? ##??# #??????????????????? | | ?????????? #?# #??????????????????? | | ?????????? ## ##?????????????????? | | ??????????? #?????????????????? | | #???????????? #?????????????????? | | ????????????? ???????????????????? | | ??????????????? #????????????????????? | | #???????????????? #????????????????????? | | #???????????????? #?????????????????????? | | #####????????##### #??????????????????????? | | #????????# ########???????????????? | | #????????# #???????????????? | | #????????# #????????????????? | | #????????## ## #?????????????????? | | ##????????# ### ##????????????????????? | | ##???????# ##??###?????###?????????????? | | #???????## ##?######### #?????????????? | | #### #????????## ###@ ## #?????????????? | | ???## #?????????# R #?????????????? | | ???## ##?????????# R ## #?????????????? | | #### #??##??????# ### ##?????????????? | | ## ### ##?????# ### #??????????????? | | #????## ## ##??????????????? | | ####### ####???????????????? | | ##### ## ##??????????????????? | | ### ##### #####???????????????????? | | ##?# ## ## ##???????????????????????? | | #??# #####????????????????????????? | | #??# #???????????????????????????? | | ##??# # ## #???????????????????????????? | | ????######## ##???????????????????????????? | | ???????##### ##????????????????????????????? | | ??????## ###?????????????????????????????? | | ??????# ##??????????????????????????????? | | ??????# ##?????????????????????????????? | | ??????# #?????????????????????????????? | | ??????## #?????????????????????????????? | | ???????## ##????????????????????????????? | | ????????####### #????????????????????????????? | | ??????????????######????????????????????????????? | | ????????????????????????????????????????????????? | | ????????????????????????????????????????????????? | +----------------------------------------------------+ Best States ------------- Heat Dissipation 25 Energy Generation 10 Energy Capacity 250 Matter Stores 300 Matter Capacity 300 Sight Range 16 Terrain Scan Density 10 Core Shielding 20 Evasion (%) 50 Recoil Reduction 2 Item Schematics ----------------- None Robot Schematics ------------------ None Fabricated ------------ Nothing Repaired ---------- Nothing Studied --------- None Alien Tech Used ----------------- None Achievements -------------- None Challenges ------------ None Game ------ Seed BattleTrackerFocus Manual? 0 Play Time 00:14:58 Cumulative 105.3 hours Start 2025.12.07 @ 09:22:25 End 2025.12.07 @ 09:32:38 Sessions 1 Manual Loads 0 Difficulty Rogue Special Mode None Game No. 111 Rogue 111 Adventurer 0 Explorer 0 Win Type - Total 0 Types 0/0/0/0/0/0/0/0/0/0 Lore% 62 Gallery% 47 Achievement% 39 Wizard Run 0 Options --------- Layout 0 ASCII 0 Keyboard 1 Movement Vi Keybinds 0 Fullscreen 2 Font 18/SmallcapsGlow Map View 76x50 Zoom Use 0% Tactical HUD 1 Map Filters NONE Filters NONE Steam 1 RUN: be779535-55b0-415f-95a0-2bfe792600a7